fUSD/lending_fUSD_20260630
["ID","MTS","AMOUNT","RATE_DAILY","PERIOD"]
[426751481,1782779454000,-187.817675,0.00034986,2]
[426751488,1782779454000,-3203.2294,0.00035,2]
[426751490,1782779454000,-1500.0,0.00035,2]
[426751485,1782779454000,-812.0,0.0003499,120]
[426751492,1782779454000,-1142.0035089,0.00035,2]
[426751489,1782779454000,-800.0,0.00035,7]
[426751496,1782779454000,-379.0,0.00035029,2]
[426751486,1782779454000,-747.0,0.0003499,120]
[426751487,1782779454000,-350.0,0.00034992,2]
[426751567,1782779455000,-271.671406,0.00035282,7]
[426751566,1782779455000,-377.0,0.0003528,2]
[426751564,1782779455000,-1982.8203,0.0003526,64]
[426751565,1782779455000,-392.0,0.0003527,2]
[426751569,1782779455000,-643.36414831,0.00035292,7]
[426751561,1782779455000,-1982.8203,0.0003526,64]
[426751562,1782779455000,-1982.8203,0.0003526,64]
[426751560,1782779455000,-355.50912764,0.0003526,30]
[426751558,1782779455000,-500.0,0.0003526,30]
[426751559,1782779455000,-500.0,0.0003526,30]
[426751563,1782779455000,-1982.8203,0.0003526,64]
[426751568,1782779455000,-392.0,0.00035289,2]
[426751575,1782779455000,-377.0,0.00035326,2]
[426751572,1782779455000,-377.0,0.00035309,2]
[426751574,1782779455000,-235.0,0.00035323,2]
[426751571,1782779455000,-379.0,0.00035306,2]
[426751573,1782779455000,-377.0,0.00035316,2]
[426751577,1782779455000,-377.0,0.00035343,2]
[426751578,1782779455000,-441.0,0.00035376,7]
[426751576,1782779455000,-200.0,0.0003533,10]
[426751582,1782779455000,-642.41,0.0003545,7]
[426751579,1782779455000,-201.0,0.00035376,7]
[426751581,1782779455000,-200.0,0.000354,10]
[426751554,1782779455000,-200.0,0.00035245,2]
[426751585,1782779455000,-750.0,0.00035479,7]
[426751570,1782779455000,-379.0,0.00035298,2]
[426751551,1782779455000,-505.18157816,0.00035228,30]
[426751539,1782779455000,-2131.96752534,0.000352,30]
[426751552,1782779455000,-274.49461719,0.00035245,2]
[426751584,1782779455000,-750.0,0.00035479,7]
[426751530,1782779455000,-392.0,0.0003519,2]
[426751529,1782779455000,-951.96,0.00035178,120]
[426751532,1782779455000,-151.0,0.000352,30]
[426751531,1782779455000,-281.61363265,0.000352,30]
[426751543,1782779455000,-679.5030724,0.0003521,2]
[426751545,1782779455000,-263.48880861,0.00035215,2]
[426751533,1782779455000,-151.0,0.000352,30]
[426751544,1782779455000,-187.817676,0.00035212,2]
[426751534,1782779455000,-151.0,0.000352,30]
[426751536,1782779455000,-151.0,0.000352,30]
[426751535,1782779455000,-151.0,0.000352,30]
[426751542,1782779455000,-198.59556489,0.00035202,2]
[426751537,1782779455000,-152.0,0.000352,30]
[426751540,1782779455000,-2131.96752532,0.000352,30]
[426751541,1782779455000,-2131.96752532,0.000352,30]
[426751538,1782779455000,-151.0,0.000352,30]
[426751546,1782779455000,-374.46844969,0.00035215,2]
[426751556,1782779455000,-377.0,0.00035253,2]
[426751549,1782779455000,-279.79824217,0.00035221,2]
[426751547,1782779455000,-213.95955179,0.00035215,2]
[426751557,1782779455000,-500.0,0.0003526,30]
[426751555,1782779455000,-392.0,0.00035251,2]
[426751548,1782779455000,-392.0,0.00035216,2]
[426751553,1782779455000,-279.79824217,0.00035245,2]
[426751550,1782779455000,-2210.27188032,0.00035228,30]
[426751580,1782779455000,-152.4,0.00035376,7]
[426751583,1782779455000,-275.52,0.0003546,69]
[426751624,1782779455000,-750.0,0.00035479,7]
[426751614,1782779455000,-750.0,0.00035479,7]
[426751617,1782779455000,-750.0,0.00035479,7]
[426751613,1782779455000,-750.0,0.00035479,7]
[426751620,1782779455000,-750.0,0.00035479,7]
[426751619,1782779455000,-750.0,0.00035479,7]
[426751623,1782779455000,-750.0,0.00035479,7]
[426751625,1782779455000,-750.0,0.00035479,7]
[426751628,1782779455000,-750.0,0.00035479,7]
[426751626,1782779455000,-750.0,0.00035479,7]
[426751630,1782779455000,-750.0,0.00035479,7]
[426751629,1782779455000,-750.0,0.00035479,7]
[426751627,1782779455000,-750.0,0.00035479,7]
[426751631,1782779455000,-750.0,0.00035479,7]
[426751632,1782779455000,-750.0,0.00035479,7]
[426751633,1782779455000,-750.0,0.00035479,7]
[426751635,1782779455000,-750.0,0.00035479,7]
[426751634,1782779455000,-750.0,0.00035479,7]
[426751637,1782779455000,-750.0,0.00035479,7]
[426751641,1782779455000,-750.0,0.00035479,7]
[426751636,1782779455000,-750.0,0.00035479,7]
[426751638,1782779455000,-750.0,0.00035479,7]
[426751640,1782779455000,-750.0,0.00035479,7]
[426751639,1782779455000,-750.0,0.00035479,7]
[426751586,1782779455000,-750.0,0.00035479,7]
[426751642,1782779455000,-750.0,0.00035479,7]
[426751616,1782779455000,-750.0,0.00035479,7]
[426751615,1782779455000,-750.0,0.00035479,7]
[426751618,1782779455000,-750.0,0.00035479,7]
[426751610,1782779455000,-750.0,0.00035479,7]
[426751588,1782779455000,-750.0,0.00035479,7]
[426751587,1782779455000,-750.0,0.00035479,7]
[426751589,1782779455000,-750.0,0.00035479,7]
[426751590,1782779455000,-750.0,0.00035479,7]
[426751591,1782779455000,-750.0,0.00035479,7]
[426751593,1782779455000,-750.0,0.00035479,7]
[426751592,1782779455000,-750.0,0.00035479,7]
[426751597,1782779455000,-750.0,0.00035479,7]
[426751612,1782779455000,-750.0,0.00035479,7]
[426751594,1782779455000,-750.0,0.00035479,7]
[426751595,1782779455000,-750.0,0.00035479,7]
[426751598,1782779455000,-750.0,0.00035479,7]
[426751600,1782779455000,-750.0,0.00035479,7]
[426751601,1782779455000,-750.0,0.00035479,7]
[426751596,1782779455000,-750.0,0.00035479,7]
[426751607,1782779455000,-750.0,0.00035479,7]
[426751604,1782779455000,-750.0,0.00035479,7]
[426751608,1782779455000,-750.0,0.00035479,7]
[426751602,1782779455000,-750.0,0.00035479,7]
[426751609,1782779455000,-750.0,0.00035479,7]
[426751603,1782779455000,-750.0,0.00035479,7]
[426751606,1782779455000,-750.0,0.00035479,7]
[426751622,1782779455000,-750.0,0.00035479,7]
[426751605,1782779455000,-750.0,0.00035479,7]
[426751621,1782779455000,-750.0,0.00035479,7]
[426751611,1782779455000,-750.0,0.00035479,7]
[426751599,1782779455000,-750.0,0.00035479,7]
[426751672,1782779456000,-13260.57721285,0.00035584,3]
[426751685,1782779456000,-150.0,0.00035616,2]
[426751684,1782779456000,-100810.54539642,0.00035616,7]
[426751680,1782779456000,-151.0,0.00035613,14]
[426751683,1782779456000,-195.2,0.00035616,60]
[426751673,1782779456000,-5582.0,0.00035589,2]
[426751682,1782779456000,-350.7808333,0.00035616,30]
[426751681,1782779456000,-150.0,0.00035616,60]
[426751678,1782779456000,-200.0,0.000356,11]
[426751676,1782779456000,-219.38991956,0.000356,2]
[426751687,1782779456000,-150.0,0.00035616,2]
[426751679,1782779456000,-916.96948257,0.000356,2]
[426751677,1782779456000,-2220.11758662,0.000356,2]
[426751696,1782779456000,-153.0,0.00035616,7]
[426751686,1782779456000,-3368.65478256,0.00035616,2]
[426751690,1782779456000,-196.48,0.00035616,60]
[426751700,1782779456000,-152.0,0.00035616,7]
[426751694,1782779456000,-153.0,0.00035616,7]
[426751698,1782779456000,-152.0,0.00035616,7]
[426751699,1782779456000,-152.0,0.00035616,7]
[426751695,1782779456000,-153.0,0.00035616,7]
[426751692,1782779456000,-437.66719689,0.00035616,60]
[426751693,1782779456000,-153.0,0.00035616,7]
[426751689,1782779456000,-166.7,0.00035616,60]
[426751691,1782779456000,-500.0,0.00035616,60]
[426751671,1782779456000,-25000.0,0.00035584,3]
[426751688,1782779456000,-2387.88924966,0.00035616,2]
[426751670,1782779456000,-25000.0,0.00035584,3]
[426751647,1782779456000,-750.0,0.00035479,7]
[426751669,1782779456000,-25000.0,0.00035584,3]
[426751643,1782779456000,-750.0,0.00035479,7]
[426751648,1782779456000,-750.0,0.00035479,7]
[426751644,1782779456000,-750.0,0.00035479,7]
[426751645,1782779456000,-750.0,0.00035479,7]
[426751646,1782779456000,-750.0,0.00035479,7]
[426751649,1782779456000,-750.0,0.00035479,7]
[426751650,1782779456000,-654.0,0.00035479,7]
[426751652,1782779456000,-800.0,0.000355,7]
[426751661,1782779456000,-644.59,0.00035576,2]
[426751653,1782779456000,-800.0,0.000355,7]
[426751656,1782779456000,-160.0,0.0003551,11]
[426751659,1782779456000,-151.0,0.00035576,2]
[426751662,1782779456000,-151.0,0.00035576,2]
[426751654,1782779456000,-2000.0,0.000355,5]
[426751660,1782779456000,-644.11,0.00035576,2]
[426751655,1782779456000,-300.0,0.000355,10]
[426751657,1782779456000,-162.46,0.00035522,7]
[426751658,1782779456000,-505.0,0.0003557,20]
[426751664,1782779456000,-505.18,0.00035584,30]
[426751675,1782779456000,-2000.0,0.000356,7]
[426751674,1782779456000,-200.0,0.00035597,2]
[426751663,1782779456000,-2210.27,0.00035584,30]
[426751665,1782779456000,-1492.73875553,0.00035584,30]
[426751666,1782779456000,-1350.05536941,0.00035584,3]
[426751667,1782779456000,-25000.0,0.00035584,3]
[426751668,1782779456000,-13657.81168864,0.00035584,3]
[426751697,1782779456000,-151.0,0.00035616,7]
[426751651,1782779456000,-800.0,0.000355,7]
[426751705,1782779456000,-151.0,0.00035616,7]
[426751730,1782779456000,-883.146791,0.00035616,7]
[426751736,1782779456000,-312.224004,0.00035616,7]
[426751734,1782779456000,-151.00001,0.00035616,7]
[426751733,1782779456000,-1982.8203,0.00035616,68]
[426751732,1782779456000,-1982.8203,0.00035616,68]
[426751731,1782779456000,-883.146791,0.00035616,7]
[426751740,1782779456000,-4252.868314,0.00035616,7]
[426751739,1782779456000,-151.0,0.00035616,7]
[426751746,1782779456000,-200.055808,0.00035616,7]
[426751745,1782779456000,-200.055808,0.00035616,7]
[426751741,1782779456000,-4252.868314,0.00035616,7]
[426751744,1782779456000,-200.055808,0.00035616,7]
[426751738,1782779456000,-312.224004,0.00035616,7]
[426751743,1782779456000,-4252.868314,0.00035616,7]
[426751747,1782779456000,-200.055808,0.00035616,7]
[426751748,1782779456000,-151.0,0.00035616,7]
[426751751,1782779456000,-1500.045949,0.00035616,7]
[426751750,1782779456000,-1500.045949,0.00035616,7]
[426751749,1782779456000,-151.0,0.00035616,7]
[426751752,1782779456000,-1500.045949,0.00035616,7]
[426751753,1782779456000,-1500.045949,0.00035616,7]
[426751755,1782779456000,-151.0,0.00035616,7]
[426751756,1782779456000,-9055.0,0.00035616,5]
[426751757,1782779456000,-686.0,0.00035616,5]
[426751758,1782779456000,-151.0,0.00035616,30]
[426751701,1782779456000,-152.0,0.00035616,7]
[426751742,1782779456000,-4252.868314,0.00035616,7]
[426751737,1782779456000,-312.224004,0.00035616,7]
[426751754,1782779456000,-151.0,0.00035616,7]
[426751727,1782779456000,-152.35,0.00035616,60]
[426751735,1782779456000,-312.224004,0.00035616,7]
[426751712,1782779456000,-1669.258476,0.00035616,7]
[426751702,1782779456000,-152.0,0.00035616,7]
[426751707,1782779456000,-191.48,0.00035616,60]
[426751713,1782779456000,-151.0,0.00035616,7]
[426751703,1782779456000,-152.0,0.00035616,7]
[426751709,1782779456000,-1669.258476,0.00035616,7]
[426751704,1782779456000,-151.0,0.00035616,7]
[426751708,1782779456000,-2110.0,0.00035616,2]
[426751711,1782779456000,-1669.258476,0.00035616,7]
[426751710,1782779456000,-1669.258476,0.00035616,7]
[426751725,1782779456000,-151.0,0.00035616,7]
[426751715,1782779456000,-151.0,0.00035616,7]
[426751706,1782779456000,-3024.87,0.00035616,30]
[426751716,1782779456000,-151.0,0.00035616,7]
[426751714,1782779456000,-151.0,0.00035616,7]
[426751729,1782779456000,-883.146791,0.00035616,7]
[426751726,1782779456000,-300.53,0.00035616,30]
[426751728,1782779456000,-883.146791,0.00035616,7]
[426751723,1782779456000,-151.0,0.00035616,7]
[426751724,1782779456000,-151.0,0.00035616,7]
[426751722,1782779456000,-156.520971,0.00035616,7]
[426751719,1782779456000,-151.0,0.00035616,7]
[426751721,1782779456000,-151.0,0.00035616,7]
[426751718,1782779456000,-151.0,0.00035616,7]
[426751717,1782779456000,-151.0,0.00035616,7]
[426751720,1782779456000,-151.0,0.00035616,7]
[426751783,1782779457000,-151.0,0.00035616,30]
[426751781,1782779457000,-151.0,0.00035616,30]
[426751790,1782779457000,-602.75593,0.00035616,30]
[426751785,1782779457000,-151.0,0.00035616,30]
[426751784,1782779457000,-227.750337,0.00035616,30]
[426751791,1782779457000,-151.0,0.00035616,30]
[426751787,1782779457000,-151.0,0.00035616,30]
[426751786,1782779457000,-602.75593,0.00035616,30]
[426751789,1782779457000,-227.750337,0.00035616,30]
[426751797,1782779457000,-151.0,0.00035616,30]
[426751792,1782779457000,-2551.007262,0.00035616,30]
[426751796,1782779457000,-2551.007262,0.00035616,30]
[426751795,1782779457000,-227.750337,0.00035616,30]
[426751800,1782779457000,-151.0,0.00035616,30]
[426751794,1782779457000,-602.75593,0.00035616,30]
[426751799,1782779457000,-2551.007262,0.00035616,30]
[426751782,1782779457000,-265.088409,0.00035616,30]
[426751793,1782779457000,-227.750337,0.00035616,30]
[426751788,1782779457000,-151.0,0.00035616,30]
[426751780,1782779457000,-151.0,0.00035616,30]
[426751767,1782779457000,-256.452319,0.00035616,30]
[426751779,1782779457000,-151.0,0.00035616,30]
[426751801,1782779457000,-2551.007262,0.00035616,30]
[426751764,1782779457000,-174.080088,0.00035616,30]
[426751761,1782779457000,-151.0,0.00035616,30]
[426751760,1782779457000,-151.0,0.00035616,30]
[426751762,1782779457000,-151.916709,0.00035616,30]
[426751759,1782779457000,-151.0,0.00035616,30]
[426751763,1782779457000,-256.452319,0.00035616,30]
[426751765,1782779457000,-256.452319,0.00035616,30]
[426751766,1782779457000,-174.080088,0.00035616,30]
[426751771,1782779457000,-327.60059,0.00035616,30]
[426751774,1782779457000,-327.60059,0.00035616,30]
[426751768,1782779457000,-174.080088,0.00035616,30]
[426751773,1782779457000,-327.60059,0.00035616,30]
[426751770,1782779457000,-174.080088,0.00035616,30]
[426751769,1782779457000,-256.452319,0.00035616,30]
[426751772,1782779457000,-327.60059,0.00035616,30]
[426751776,1782779457000,-151.0,0.00035616,30]
[426751775,1782779457000,-151.0,0.00035616,30]
[426751777,1782779457000,-151.0,0.00035616,30]
[426751778,1782779457000,-151.0,0.00035616,30]
[426751802,1782779457000,-151.0,0.00035616,30]
[426751798,1782779457000,-602.75593,0.00035616,30]
[426751803,1782779457000,-553.612309,0.00035616,30]
[426751828,1782779457000,-151.0,0.00035616,30]
[426751830,1782779457000,-983.025102,0.00035616,30]
[426751829,1782779457000,-5271.588622,0.00035616,30]
[426751831,1782779457000,-10850.85967,0.00035616,30]
[426751833,1782779457000,-306.24419,0.00035616,30]
[426751841,1782779457000,-151.0,0.00035616,30]
[426751836,1782779457000,-5271.588622,0.00035616,30]
[426751834,1782779457000,-4141.455722,0.00035616,30]
[426751842,1782779457000,-10749.118255,0.00035616,30]
[426751835,1782779457000,-10850.85967,0.00035616,30]
[426751832,1782779457000,-151.0,0.00035616,30]
[426751838,1782779457000,-4141.455722,0.00035616,30]
[426751840,1782779457000,-10850.85967,0.00035616,30]
[426751839,1782779457000,-5271.588622,0.00035616,30]
[426751843,1782779457000,-306.24419,0.00035616,30]
[426751844,1782779457000,-4141.455722,0.00035616,30]
[426751846,1782779457000,-10850.85967,0.00035616,30]
[426751804,1782779457000,-7464.886624,0.00035616,30]
[426751845,1782779457000,-9739.217006,0.00035616,30]
[426751826,1782779457000,-5271.588622,0.00035616,30]
[426751827,1782779457000,-983.025102,0.00035616,30]
[426751837,1782779457000,-306.24419,0.00035616,30]
[426751823,1782779457000,-277.219059,0.00035616,30]
[426751807,1782779457000,-553.612309,0.00035616,30]
[426751825,1782779457000,-151.0,0.00035616,30]
[426751806,1782779457000,-277.219059,0.00035616,30]
[426751805,1782779457000,-1976.712986,0.00035616,30]
[426751809,1782779457000,-7464.886624,0.00035616,30]
[426751810,1782779457000,-1976.712986,0.00035616,30]
[426751812,1782779457000,-553.612309,0.00035616,30]
[426751811,1782779457000,-277.219059,0.00035616,30]
[426751815,1782779457000,-7464.886624,0.00035616,30]
[426751808,1782779457000,-1337.393407,0.00035616,30]
[426751813,1782779457000,-1337.393407,0.00035616,30]
[426751817,1782779457000,-277.219059,0.00035616,30]
[426751818,1782779457000,-553.612309,0.00035616,30]
[426751819,1782779457000,-1337.393407,0.00035616,30]
[426751816,1782779457000,-1976.712986,0.00035616,30]
[426751821,1782779457000,-983.025102,0.00035616,30]
[426751820,1782779457000,-7464.886624,0.00035616,30]
[426751824,1782779457000,-1337.393407,0.00035616,30]
[426751814,1782779457000,-983.025102,0.00035616,30]
[426751822,1782779457000,-1976.712986,0.00035616,30]
[426751890,1782779458000,-311.954531,0.00035616,30]
[426751892,1782779458000,-526.973479,0.00035616,30]
[426751885,1782779458000,-585.374962,0.00035616,30]
[426751882,1782779458000,-585.374962,0.00035616,30]
[426751893,1782779458000,-4128.547601,0.00035616,7]
[426751884,1782779458000,-368.199655,0.00035616,7]
[426751886,1782779458000,-311.954531,0.00035616,30]
[426751883,1782779458000,-311.954531,0.00035616,30]
[426751877,1782779458000,-1950.878986,0.00035616,30]
[426751887,1782779458000,-526.973479,0.00035616,30]
[426751873,1782779458000,-166.414994,0.00035616,30]
[426751894,1782779458000,-526.973479,0.00035616,30]
[426751889,1782779458000,-585.374962,0.00035616,30]
[426751907,1782779458000,-2302.617804,0.00035616,30]
[426751891,1782779458000,-368.199655,0.00035616,7]
[426751895,1782779458000,-4128.547601,0.00035616,7]
[426751896,1782779458000,-151.0,0.00035616,30]
[426751904,1782779458000,-295.513275,0.00035616,30]
[426751898,1782779458000,-4128.547601,0.00035616,7]
[426751897,1782779458000,-526.973479,0.00035616,30]
[426751902,1782779458000,-242.942116,0.00035616,30]
[426751906,1782779458000,-295.513275,0.00035616,30]
[426751900,1782779458000,-242.942116,0.00035616,30]
[426751901,1782779458000,-4128.547601,0.00035616,7]
[426751903,1782779458000,-616.283177,0.00035616,20]
[426751905,1782779458000,-242.942116,0.00035616,30]
[426751899,1782779458000,-616.283177,0.00035616,20]
[426751872,1782779458000,-151.0,0.00035616,30]
[426751888,1782779458000,-368.199655,0.00035616,7]
[426751878,1782779458000,-1950.878986,0.00035616,30]
[426751857,1782779458000,-151.0,0.00035616,30]
[426751879,1782779458000,-585.374962,0.00035616,30]
[426751909,1782779458000,-3249.964024,0.00035616,30]
[426751854,1782779458000,-10749.118255,0.00035616,30]
[426751855,1782779458000,-9739.217006,0.00035616,30]
[426751849,1782779458000,-4141.455722,0.00035616,30]
[426751847,1782779458000,-10749.118255,0.00035616,30]
[426751853,1782779458000,-151.0,0.00035616,30]
[426751848,1782779458000,-151.0,0.00035616,30]
[426751850,1782779458000,-306.24419,0.00035616,30]
[426751851,1782779458000,-9739.217006,0.00035616,30]
[426751852,1782779458000,-151.0,0.00035616,30]
[426751867,1782779458000,-288.020836,0.00035616,30]
[426751868,1782779458000,-166.414994,0.00035616,30]
[426751856,1782779458000,-288.020836,0.00035616,30]
[426751863,1782779458000,-151.0,0.00035616,30]
[426751858,1782779458000,-151.0,0.00035616,30]
[426751861,1782779458000,-288.020836,0.00035616,30]
[426751860,1782779458000,-9739.217006,0.00035616,30]
[426751859,1782779458000,-10749.118255,0.00035616,30]
[426751862,1782779458000,-151.0,0.00035616,30]
[426751865,1782779458000,-288.020836,0.00035616,30]
[426751866,1782779458000,-151.0,0.00035616,30]
[426751864,1782779458000,-151.0,0.00035616,30]
[426751869,1782779458000,-151.0,0.00035616,30]
[426751871,1782779458000,-166.414994,0.00035616,30]
[426751874,1782779458000,-1950.878986,0.00035616,30]
[426751870,1782779458000,-1950.878986,0.00035616,30]
[426751881,1782779458000,-368.199655,0.00035616,7]
[426751880,1782779458000,-311.954531,0.00035616,30]
[426751875,1782779458000,-151.0,0.00035616,30]
[426751876,1782779458000,-166.414994,0.00035616,30]
[426751919,1782779458000,-2302.617804,0.00035616,30]
[426751958,1782779458000,-151.0,0.00035616,30]
[426751911,1782779458000,-151.0,0.00035616,30]
[426751944,1782779458000,-151.0,0.00035616,30]
[426751943,1782779458000,-311.966221,0.00035616,30]
[426751942,1782779458000,-1722.848997,0.00035616,30]
[426751948,1782779458000,-151.0,0.00035616,30]
[426751950,1782779458000,-151.0,0.00035616,30]
[426751949,1782779458000,-365.414,0.00035616,30]
[426751951,1782779458000,-151.0,0.00035616,30]
[426751954,1782779458000,-151.0,0.00035616,30]
[426751953,1782779458000,-151.0,0.00035616,30]
[426751952,1782779458000,-365.414,0.00035616,30]
[426751955,1782779458000,-365.414,0.00035616,30]
[426751956,1782779458000,-151.0,0.00035616,30]
[426751959,1782779458000,-858.216946,0.00035616,30]
[426751957,1782779458000,-365.414,0.00035616,30]
[426751961,1782779458000,-858.216946,0.00035616,30]
[426751972,1782779458000,-192.05,0.00035616,30]
[426751971,1782779458000,-173.826926,0.00035616,30]
[426751962,1782779458000,-192.05,0.00035616,30]
[426751970,1782779458000,-192.05,0.00035616,30]
[426751963,1782779458000,-173.826926,0.00035616,30]
[426751965,1782779458000,-311.919381,0.00035616,30]
[426751967,1782779458000,-173.826926,0.00035616,30]
[426751964,1782779458000,-858.216946,0.00035616,30]
[426751960,1782779458000,-173.826926,0.00035616,30]
[426751966,1782779458000,-192.05,0.00035616,30]
[426751920,1782779458000,-2760.94787,0.00035616,30]
[426751969,1782779458000,-311.919381,0.00035616,30]
[426751973,1782779458000,-311.919381,0.00035616,30]
[426751974,1782779458000,-311.919381,0.00035616,30]
[426751939,1782779458000,-2760.94787,0.00035616,30]
[426751941,1782779458000,-151.0,0.00035616,30]
[426751968,1782779458000,-858.216946,0.00035616,30]
[426751937,1782779458000,-1722.848997,0.00035616,30]
[426751940,1782779458000,-151.0,0.00035616,30]
[426751908,1782779458000,-616.283177,0.00035616,20]
[426751914,1782779458000,-2302.617804,0.00035616,30]
[426751916,1782779458000,-151.0,0.00035616,30]
[426751918,1782779458000,-295.513275,0.00035616,30]
[426751913,1782779458000,-295.513275,0.00035616,30]
[426751917,1782779458000,-901.772022,0.00035616,30]
[426751912,1782779458000,-616.283177,0.00035616,20]
[426751915,1782779458000,-3249.964024,0.00035616,30]
[426751921,1782779458000,-3249.964024,0.00035616,30]
[426751924,1782779458000,-151.0,0.00035616,30]
[426751926,1782779458000,-3249.964024,0.00035616,30]
[426751923,1782779458000,-901.772022,0.00035616,30]
[426751925,1782779458000,-2302.617804,0.00035616,30]
[426751910,1782779458000,-242.942116,0.00035616,30]
[426751922,1782779458000,-151.0,0.00035616,30]
[426751927,1782779458000,-2760.94787,0.00035616,30]
[426751934,1782779458000,-151.0,0.00035616,30]
[426751947,1782779458000,-151.0,0.00035616,30]
[426751945,1782779458000,-1722.848997,0.00035616,30]
[426751946,1782779458000,-311.966221,0.00035616,30]
[426751935,1782779458000,-151.0,0.00035616,30]
[426751938,1782779458000,-901.772022,0.00035616,30]
[426751931,1782779458000,-901.772022,0.00035616,30]
[426751929,1782779458000,-1722.848997,0.00035616,30]
[426751933,1782779458000,-2760.94787,0.00035616,30]
[426751936,1782779458000,-311.966221,0.00035616,30]
[426751930,1782779458000,-311.966221,0.00035616,30]
[426751928,1782779458000,-151.0,0.00035616,30]
[426751932,1782779458000,-151.0,0.00035616,30]
[426752004,1782779459000,-1780.914314,0.00035616,30]
[426752017,1782779459000,-229.43723,0.00035616,30]
[426752005,1782779459000,-266.248196,0.00035616,30]
[426752008,1782779459000,-151.0,0.00035616,30]
[426752009,1782779459000,-266.248196,0.00035616,30]
[426752010,1782779459000,-1020.147463,0.00035616,30]
[426752018,1782779459000,-1020.147463,0.00035616,30]
[426752019,1782779459000,-9316.764672,0.00035616,30]
[426752016,1782779459000,-912.039531,0.00035616,30]
[426752011,1782779459000,-9316.764672,0.00035616,30]
[426752015,1782779459000,-9316.764672,0.00035616,30]
[426752007,1782779459000,-9316.764672,0.00035616,30]
[426752021,1782779459000,-1020.147463,0.00035616,30]
[426752014,1782779459000,-1020.147463,0.00035616,30]
[426752012,1782779459000,-266.248196,0.00035616,30]
[426752020,1782779459000,-912.039531,0.00035616,30]
[426752022,1782779459000,-229.43723,0.00035616,30]
[426752025,1782779459000,-879.123218,0.00035616,7]
[426752024,1782779459000,-229.43723,0.00035616,30]
[426752028,1782779459000,-151.0,0.00035616,30]
[426752026,1782779459000,-912.039531,0.00035616,30]
[426752023,1782779459000,-912.039531,0.00035616,30]
[426752027,1782779459000,-151.0,0.00035616,30]
[426752029,1782779459000,-879.123218,0.00035616,7]
[426752003,1782779459000,-151.0,0.00035616,30]
[426752013,1782779459000,-229.43723,0.00035616,30]
[426752006,1782779459000,-1780.914314,0.00035616,30]
[426751994,1782779459000,-1780.914314,0.00035616,30]
[426752002,1782779459000,-151.0,0.00035616,30]
[426752030,1782779459000,-151.0,0.00035616,30]
[426751975,1782779459000,-1211.988348,0.00035616,30]
[426751976,1782779459000,-2795.7,0.00035616,30]
[426751977,1782779459000,-1211.988348,0.00035616,30]
[426751978,1782779459000,-2795.7,0.00035616,30]
[426751982,1782779459000,-1211.988348,0.00035616,30]
[426751979,1782779459000,-1211.988348,0.00035616,30]
[426751980,1782779459000,-151.0,0.00035616,30]
[426751984,1782779459000,-2795.7,0.00035616,30]
[426751983,1782779459000,-4274.489557,0.00035616,30]
[426751981,1782779459000,-2795.7,0.00035616,30]
[426751986,1782779459000,-4274.489557,0.00035616,30]
[426751987,1782779459000,-151.0,0.00035616,30]
[426751995,1782779459000,-151.0,0.00035616,30]
[426751989,1782779459000,-4274.489557,0.00035616,30]
[426751990,1782779459000,-151.0,0.00035616,30]